fUSD/lending_fUSD_20260407
["ID","MTS","AMOUNT","RATE_DAILY","PERIOD"]
[419979671,1775581846166,-1000.0,0.00014247,2]
[419979673,1775581846176,-1000.0,0.00014247,2]
[419979675,1775581846186,-1000.0,0.00014247,2]
[419979677,1775581846198,-500.78094914,0.00014247,2]
[419979679,1775581846207,-1000.0,0.00014247,2]
[419979681,1775581846217,-1000.0,0.00014247,2]
[419979683,1775581846227,-1000.0,0.00014247,2]
[419979685,1775581846237,-166.66,0.00014289,2]
[419979687,1775581846246,-2683.33576369,0.00014301,2]
[419979689,1775581846256,-500.0,0.00014356,2]
[419979691,1775581846266,-166.66,0.00014384,2]
[419979693,1775581846275,-5246.47772752,0.00014385,2]
[419979695,1775581846285,-985.75,0.00014394,2]
[419979697,1775581846295,-1573.0,0.000144,2]
[419979699,1775581846305,-1573.0,0.000144,2]
[419979701,1775581846315,-351.0,0.000144,2]
[419979704,1775581846324,-351.0,0.000144,2]
[419979706,1775581846335,-19925.0006802,0.000144,2]
[419979708,1775581846345,-753.218999,0.00014412,2]
[419979710,1775581846355,-506.3,0.00014415,2]
[419979712,1775581846365,-556.66,0.00014415,2]
[419979714,1775581846375,-683.92,0.00014415,2]
[419979716,1775581846384,-1437.0492525,0.00014416,2]
[419979718,1775581846394,-150.86704319,0.00014426,2]
[419979720,1775581846404,-447.22262728,0.00014429,2]
[419979722,1775581846415,-3015.5669464,0.0001443,2]
[419979724,1775581846425,-1423.61343027,0.00014439,2]
[419979726,1775581846436,-152.559295,0.00014443,2]
[419979728,1775581846446,-2544.0,0.00014475,5]
[419979730,1775581846456,-387.33,0.00014484,2]
[419979732,1775581846467,-500.0,0.00014489,2]
[419979734,1775581846476,-160.0,0.00014493,2]
[419979736,1775581846486,-23010.3303587,0.00014537,2]
[419979752,1775581846632,-447.22262728,0.00014572,2]
[419979754,1775581846642,-433.0,0.00014585,2]
[419979756,1775581846652,-2000.0,0.00014603,2]
[419979758,1775581846662,-200.0,0.00014608,2]
[419979760,1775581846671,-1235.18214925,0.00014608,2]
[419979762,1775581846680,-500.0,0.00014608,2]
[419979764,1775581846689,-623.58710448,0.00014608,2]
[419979766,1775581846697,-8260.13072239,0.00014608,2]
[419979768,1775581846706,-743.50770149,0.00014608,2]
[419979770,1775581846715,-174.61919141,0.00014608,2]
[419979772,1775581846725,-599.60298507,0.00014608,2]
[419979774,1775581846734,-151.0,0.00014608,2]
[419979776,1775581846743,-411.57624402,0.00014608,2]
[419979778,1775581846753,-782.50449402,0.00014653,2]
[419979780,1775581846763,-500.0,0.00014663,2]
[419979782,1775581846773,-4638.35391231,0.00014663,2]
[419979784,1775581846784,-151.0,0.00014663,2]
[419979785,1775581846796,-163.4,0.00014667,2]
[419979788,1775581846806,-985.75,0.00014668,2]
[419979789,1775581846816,-344.0,0.00014676,2]
[419979791,1775581846825,-587.0,0.00014676,2]
[419979793,1775581846835,-587.0,0.00014676,2]
[419979796,1775581846845,-209.04114552,0.0001469,4]
[419979797,1775581846854,-1116.5117144,0.000147,2]
[419979800,1775581846864,-1056.52698146,0.000147,2]
[419979801,1775581846875,-1014.20798833,0.000147,2]
[419979803,1775581846885,-1148.68949126,0.000147,2]
[419979805,1775581846895,-1016.6388116,0.000147,2]
[419979807,1775581846905,-347.78391042,0.000147,2]
[419979809,1775581846915,-447.22262728,0.00014715,2]
[419979811,1775581846925,-500.0,0.00014718,2]
[419979813,1775581846934,-151.0,0.00014718,2]
[419979816,1775581846944,-162.0,0.0001472,2]
[419979818,1775581846954,-1573.0,0.0001472,2]
[419979819,1775581846965,-1573.0,0.0001472,2]
[419979821,1775581846976,-2351.0,0.0001474,2]
[419979823,1775581846985,-3667.82476707,0.0001475,2]
[419979825,1775581846994,-500.0,0.00014763,2]
[419979827,1775581847003,-5246.47772752,0.00014764,2]
[419979829,1775581847014,-513.22099072,0.00014764,2]
[419979831,1775581847025,-2500.0,0.00014764,2]
[419979833,1775581847035,-500.0,0.00014764,2]
[419979836,1775581847047,-2500.0,0.00014764,2]
[419979838,1775581847058,-500.0,0.00014764,2]
[419979840,1775581847069,-2000.0,0.00014768,2]
[419979842,1775581847078,-500.0,0.00014773,2]
[419979844,1775581847089,-151.0,0.00014773,2]
[419979846,1775581847098,-168.0658758,0.00014774,2]
[419979848,1775581847109,-320.6490298,0.00014779,2]
[419979850,1775581847119,-1500.0,0.00014795,2]
[419979852,1775581847129,-501.62175176,0.00014795,2]
[419979854,1775581847139,-1500.0,0.00014795,2]
[419979856,1775581847147,-1500.0,0.00014795,2]
[419979858,1775581847157,-502.96988739,0.00014795,2]
[419979860,1775581847167,-569.14564558,0.00014795,2]
[419979862,1775581847177,-1106.23788973,0.00014795,2]
[419979864,1775581847187,-506.45995198,0.00014795,2]
[419979866,1775581847198,-1002.54510633,0.00014795,2]
[419979868,1775581847207,-500.70648413,0.00014795,2]
[419979870,1775581847218,-1500.0,0.00014795,2]
[419979872,1775581847229,-1500.0,0.00014795,2]
[419979874,1775581847239,-930.82314799,0.00014795,2]
[419979876,1775581847248,-197.87652131,0.00014795,2]
[419979878,1775581847258,-500.53411029,0.00014795,2]
[419979880,1775581847267,-193.96292451,0.00014795,2]
[419979882,1775581847277,-672.8639356,0.00014796,2]
[419979884,1775581847287,-785.92,0.00014825,2]
[419979886,1775581847296,-500.0,0.00014828,2]
[419979888,1775581847305,-151.0,0.00014828,2]
[419979890,1775581847315,-948.445,0.0001491,2]
[419979892,1775581847326,-1217.0,0.0001491,2]
[419979894,1775581847336,-1563.0514107,0.00014914,2]
[419979896,1775581847346,-1423.61343027,0.00014926,2]
[419979898,1775581847356,-415.0,0.00014928,2]
[419979900,1775581847365,-6022.0,0.00014928,2]
[419979902,1775581847376,-455.86,0.00014942,2]
[419979904,1775581847386,-567.82,0.00014999,2]
[419979906,1775581847396,-899.0,0.00015,2]
[419979908,1775581847405,-300.0,0.00015,2]
[419979910,1775581847415,-342956.12,0.00015,2]
[419979912,1775581847425,-187.5021,0.00015,2]
[419979914,1775581847435,-200.0,0.00015,2]
[419979916,1775581847444,-500.0,0.00015037,2]
[419979919,1775581847462,-493.54914906,0.00015068,2]
[419979922,1775581847477,-659.81475778,0.00015093,2]
[419979923,1775581847487,-490.42181379,0.00015093,2]
[419979925,1775581847497,-506.3,0.00015099,2]
[419979928,1775581847508,-506.3,0.00015099,2]
[419979930,1775581847518,-500.0,0.00015099,2]
[419979931,1775581847527,-500.0,0.00015099,2]
[419979933,1775581847537,-893.87,0.00015099,2]
[419979935,1775581847546,-893.87,0.00015099,2]
[419979937,1775581847555,-785.93,0.00015099,2]
[419979939,1775581847565,-785.93,0.00015099,2]
[419979941,1775581847575,-556.66,0.00015099,2]
[419979943,1775581847585,-556.66,0.00015099,2]
[419979945,1775581847594,-785.92,0.00015099,2]
[419979947,1775581847603,-683.92,0.00015099,2]
[419979949,1775581847612,-683.92,0.00015099,2]
[419979951,1775581847621,-1000.0,0.00015104,2]
[419979953,1775581847632,-715.698503,0.00015129,7]
[419979956,1775581847642,-1104.038899,0.00015129,2]
[419979957,1775581847652,-626.678666,0.00015129,7]
[419979959,1775581847661,-1000.0,0.00015139,2]
[419979961,1775581847670,-1248.94920626,0.00015142,2]
[419979963,1775581847679,-5246.47772752,0.00015143,2]
[419979965,1775581847689,-1000.0,0.00015146,2]
[419979967,1775581847698,-1280.88388878,0.00015156,2]
[419979969,1775581847707,-854.56470337,0.00015156,2]
[419979971,1775581847717,-181.08010149,0.00015156,2]
[419979973,1775581847726,-194.83183622,0.00015156,2]
[419979975,1775581847735,-1000.0,0.00015176,2]
[419979977,1775581847746,-501.0,0.00015191,3]
[419979979,1775581847755,-567.82,0.00015199,2]
[419979982,1775581847764,-10000.0,0.00015205,2]
[419979983,1775581847774,-215.18,0.00015209,2]
[419979986,1775581847784,-250.0,0.00015222,2]
[419979988,1775581847793,-150.0,0.00015226,2]
[419979990,1775581847803,-157.4186019,0.00015238,2]
[419979992,1775581847813,-163.4,0.00015256,2]
[419979994,1775581847822,-350.0,0.00015266,3]
[419979996,1775581847833,-215.18,0.00015273,2]
[419979998,1775581847842,-350.0,0.00015277,2]
[419980000,1775581847852,-1000.0,0.00015282,2]
[419980002,1775581847862,-1081.85164783,0.00015282,2]
[419980004,1775581847871,-1000.0,0.00015293,2]
[419980006,1775581847881,-1000.0,0.00015293,2]
[419980008,1775581847891,-1419.68857347,0.00015295,30]
[419980010,1775581847901,-3000.0,0.00015312,2]
[419980012,1775581847912,-217.0,0.00015316,2]
[419980014,1775581847921,-273.0,0.00015316,2]
[419980016,1775581847931,-200.0,0.00015316,2]
[419980018,1775581847941,-224.902,0.00015316,2]
[419980020,1775581847950,-250.0,0.00015316,2]
[419980022,1775581847960,-208.102,0.00015316,2]
[419980024,1775581847976,-250.0,0.00015316,2]
[419980026,1775581847986,-163.244,0.00015316,2]
[419980028,1775581847996,-250.0,0.00015316,2]
[419980030,1775581848007,-155.122,0.00015316,2]
[419980033,1775581848016,-193.639,0.00015316,2]
[419980035,1775581848026,-166.189,0.00015316,2]
[419980037,1775581848037,-215.02,0.00015316,2]
[419980039,1775581848047,-250.0,0.00015316,2]
[419980041,1775581848057,-3524.0,0.00015316,2]
[419980043,1775581848067,-622.0,0.00015316,2]
[419980045,1775581848077,-1347.0,0.00015316,2]
[419980047,1775581848087,-276.717,0.00015316,2]
[419980049,1775581848097,-1264.0,0.00015316,2]
[419980051,1775581848107,-215.18,0.00015337,2]
[419980054,1775581848117,-2000.0,0.00015342,2]
[419980056,1775581848127,-283.10092568,0.00015342,2]
[419980058,1775581848137,-2000.0,0.00015342,2]
[419980060,1775581848147,-2000.0,0.00015342,2]
[419980062,1775581848157,-1000.0,0.00015356,2]
[419980064,1775581848167,-500.0,0.00015359,2]
[419980066,1775581848177,-787.31,0.00015359,2]
[419980068,1775581848187,-922.22,0.00015359,2]
[419980070,1775581848195,-500.0,0.00015359,2]
[419980072,1775581848205,-2812.0,0.0001536,2]
[419980074,1775581848214,-2812.0,0.0001536,2]
[419980076,1775581848224,-1570.0,0.0001536,2]
[419980078,1775581848233,-209.92,0.00015373,2]
[419980080,1775581848243,-871.95012592,0.00015389,2]
[419980082,1775581848253,-1000.0,0.00015396,2]
[419980084,1775581848263,-150.0,0.00015412,2]
[419980086,1775581848272,-1423.61343027,0.00015413,2]
[419980088,1775581848282,-1000.0,0.0001542,2]
[419980090,1775581848291,-350.0,0.0001542,2]
[419980092,1775581848301,-350.0,0.0001542,2]
[419980094,1775581848311,-350.0,0.0001542,2]
[419980096,1775581848320,-350.0,0.0001542,2]
[419980098,1775581848329,-350.0,0.0001542,2]
[419980100,1775581848339,-350.0,0.0001542,2]
[419980102,1775581848349,-350.0,0.0001542,2]
[419980104,1775581848359,-350.0,0.0001542,2]
[419980106,1775581848369,-485.0,0.0001542,2]
[419980108,1775581848378,-8425.49894113,0.00015429,2]
[419980110,1775581848388,-347.78391042,0.00015433,2]
[419980112,1775581848397,-250.0,0.00015436,2]
[419980114,1775581848407,-699.254487,0.00015438,2]
[419980116,1775581848416,-625.614233,0.00015438,7]
[419980118,1775581848426,-1500.0,0.00015452,2]
[419980120,1775581848436,-700.0,0.00015452,2]
[419980122,1775581848446,-937.35,0.00015471,2]
[419980125,1775581848457,-3284.3,0.00015471,2]
[419980127,1775581848467,-10389.17,0.00015471,2]
[419980129,1775581848482,-1129.7,0.00015471,2]
[419980131,1775581848492,-155.26329613,0.00015483,2]
[419980133,1775581848502,-150.0,0.00015489,2]
[419980135,1775581848511,-600.0,0.000155,2]
[419980137,1775581848521,-600.0,0.000155,2]
[419980139,1775581848531,-600.0,0.000155,2]
[419980141,1775581848540,-600.0,0.000155,2]
[419980143,1775581848550,-600.0,0.000155,2]
[419980145,1775581848560,-600.0,0.000155,2]
[419980146,1775581848569,-600.0,0.000155,2]
[419980147,1775581848579,-600.0,0.000155,2]
[419980148,1775581848589,-600.0,0.000155,2]
[419980149,1775581848599,-410.0,0.000155,2]
[419980150,1775581848608,-5246.47772752,0.00015521,2]
[419980151,1775581848618,-150.0,0.00015545,2]
[419980152,1775581848628,-150.0,0.00015548,2]
[419980153,1775581848637,-567.82,0.0001556,2]
[419980154,1775581848646,-567.82,0.0001556,2]
[419980155,1775581848656,-567.82,0.0001556,2]
[419980156,1775581848665,-567.82,0.0001556,2]
[419980157,1775581848675,-568.01099318,0.0001556,2]
[419980158,1775581848685,-1000.0,0.00015573,2]
[419980159,1775581848695,-1000.0,0.00015578,2]
[419980160,1775581848705,-150.0,0.00015581,2]
[419980161,1775581848715,-350.0,0.00015599,3]
[419980162,1775581848724,-181.04222704,0.000156,7]
[419980163,1775581848734,-243.30922088,0.00015632,2]
[419980164,1775581848744,-248.96185781,0.0001566,2]
[419980165,1775581848754,-1000.0,0.00015669,2]
[419980166,1775581848763,-150.0,0.00015675,2]
[419980167,1775581848773,-1165.06925813,0.0001568,2]
[419980168,1775581848783,-2079.0,0.0001568,2]
[419980169,1775581848792,-1049.45771919,0.0001568,2]
[419980170,1775581848802,-1096.05801655,0.0001568,2]
[419980171,1775581848812,-155.05476178,0.00015701,2]
[419980172,1775581848822,-254.76977342,0.00015701,2]
[419980173,1775581848832,-456.1983721,0.00015701,2]
[419980174,1775581848842,-1328.27659266,0.00015704,2]
[419980175,1775581848852,-187.78006525,0.00015704,2]
[419980176,1775581848862,-10000.0,0.00015721,2]
[419980177,1775581848872,-1000.0,0.00015747,2]
[419980178,1775581848882,-1000.0,0.00015757,2]
[419980179,1775581848891,-377.0,0.00015762,2]
[419980180,1775581848901,-151.49,0.00015778,2]
[419980181,1775581848911,-151.49,0.00015778,2]
[419980182,1775581848921,-151.49,0.00015778,2]
[419980183,1775581848931,-151.48,0.00015778,2]
[419980184,1775581848941,-377.0,0.00015782,2]
[419980185,1775581848951,-377.0,0.00015784,2]
[419980186,1775581848961,-2000.1,0.000158,2]
[419980187,1775581848971,-1000.0,0.00015807,2]
[419980188,1775581848980,-500.0,0.00015808,2]
[419980189,1775581848992,-500.0,0.00015808,2]
[419980190,1775581849002,-396.18600857,0.00015808,2]
[419980191,1775581849012,-150.0,0.00015834,2]
[419980192,1775581849021,-377.0,0.00015838,2]
[419980193,1775581849031,-506.3,0.00015839,2]
[419980194,1775581849041,-893.87,0.00015839,2]
[419980195,1775581849051,-785.93,0.00015839,2]
[419980196,1775581849061,-556.66,0.00015839,2]
[419980198,1775581849071,-683.92,0.00015839,2]
[419980200,1775581849081,-10000.0,0.0001584,2]
[419980202,1775581849091,-42892.25216829,0.0001584,2]
[419980204,1775581849100,-170.9893,0.0001584,2]
[419980206,1775581849110,-2000.0,0.0001584,2]
[419980208,1775581849120,-2000.0,0.0001584,2]
[419980210,1775581849130,-150.0,0.00015846,2]
[419980212,1775581849140,-500.0,0.00015849,2]
[419980214,1775581849150,-170.9895,0.0001585,2]
[419980216,1775581849159,-2000.0,0.0001585,2]
[419980218,1775581849169,-1000.0,0.00015853,2]
[419980220,1775581849178,-170.9895,0.0001586,2]
[419980222,1775581849188,-2500.0,0.0001586,2]
[419980224,1775581849198,-377.0,0.00015866,2]
[419980226,1775581849207,-736.0,0.00015866,2]
[419980228,1775581849216,-170.9895,0.0001587,2]
[419980230,1775581849226,-500.0,0.00015872,2]
[419980232,1775581849236,-163.4,0.0001588,2]
[419980233,1775581849245,-170.9895,0.0001588,2]
[419980234,1775581849255,-171.7451,0.0001589,2]
[419980235,1775581849264,-2000.0,0.0001589,2]
[419980236,1775581849274,-2500.0,0.0001589,2]
[419980237,1775581849283,-2500.0,0.0001589,2]
[419980238,1775581849293,-2003.40852733,0.0001589,2]
[419980239,1775581849302,-25000.0,0.00015891,3]
[419980240,1775581849312,-171.3229734,0.00015898,2]
[419980241,1775581849321,-25000.0,0.000159,3]
[419980242,1775581849331,-5800.0,0.000159,2]
[419980243,1775581849341,-150.0,0.000159,2]
[419980244,1775581849350,-3378.4097849,0.000159,3]
[419980245,1775581849361,-5246.47772752,0.000159,2]
[419980246,1775581849372,-150.0,0.000159,2]
[419980247,1775581849382,-1423.61343027,0.000159,2]
[419980248,1775581849392,-233.57251441,0.000159,2]
[419980249,1775581849401,-3667.82476707,0.000159,2]
[419980250,1775581849411,-150.0,0.000159,2]
[419980251,1775581849420,-3188.0,0.000159,5]
[419980252,1775581849430,-200.0,0.00015903,2]
[419980253,1775581849440,-163.4,0.00015913,2]
[419980254,1775581849449,-1000.0,0.00015921,2]
[419980255,1775581849459,-177.0,0.00015923,2]
[419980256,1775581849468,-377.0,0.00015947,2]
[419980257,1775581849478,-152.0,0.0001595,5]
[419980258,1775581849488,-152.0,0.0001595,5]
[419980259,1775581849498,-5000.0,0.0001596,2]
[419980260,1775581849507,-1000.0,0.00015969,2]
[419980261,1775581849517,-377.0,0.00015971,2]
[419980262,1775581849526,-500.0,0.00015972,2]
[419980264,1775581849536,-787.31,0.00015972,2]
[419980266,1775581849546,-922.22,0.00015972,2]
[419980268,1775581849555,-500.0,0.00015972,2]
[419980270,1775581849565,-628.06797502,0.00015973,2]
[419980272,1775581849574,-286.56433231,0.00015973,2]
[419980273,1775581849584,-500.0,0.00015973,2]
[419980274,1775581849593,-500.0,0.00015973,2]
[419980275,1775581849602,-500.0,0.00015973,2]
[419980276,1775581849612,-500.0,0.00015973,2]
[419980277,1775581849621,-500.0,0.00015973,2]
[419980278,1775581849630,-506.3,0.00015977,2]
[419980279,1775581849640,-893.87,0.00015977,2]
[419980280,1775581849658,-785.93,0.00015977,2]
[419980281,1775581849670,-556.66,0.00015977,2]
[419980282,1775581849679,-683.92,0.00015977,2]
[419980283,1775581849689,-350.0,0.00015977,3]
[419980284,1775581849697,-377.0,0.00015979,2]
[419980285,1775581849707,-782.50449402,0.0001599,2]
[419980286,1775581849717,-45226.9198558,0.00015995,2]
[419980287,1775581849727,-151.0,0.00015997,2]
[419980288,1775581849737,-151.0,0.00015997,2]
[419980289,1775581849747,-666.0,0.00015999,2]
[419980290,1775581849757,-666.0,0.00015999,2]
[419980291,1775581849766,-666.0,0.00015999,2]
[419980292,1775581849776,-506.3,0.00015999,2]
[419980293,1775581849785,-506.3,0.00015999,2]
[419980294,1775581849794,-506.3,0.00015999,2]
[419980295,1775581849804,-506.3,0.00015999,2]
[419980296,1775581849813,-506.3,0.00015999,2]
[419980297,1775581849823,-506.4298975,0.00015999,2]
[419980298,1775581849832,-500.0,0.00015999,2]
[419980299,1775581849842,-500.0,0.00015999,2]
[419980300,1775581849851,-494.00745143,0.00015999,2]
[419980301,1775581849861,-378.73889738,0.00015999,2]
[419980302,1775581849871,-893.87,0.00015999,2]
[419980303,1775581849881,-893.87,0.00015999,2]
[419980304,1775581849891,-893.87,0.00015999,2]
[419980305,1775581849901,-893.87,0.00015999,2]
[419980306,1775581849911,-893.87,0.00015999,2]
[419980307,1775581849920,-893.90214758,0.00015999,2]
[419980308,1775581849930,-785.93,0.00015999,2]
[419980309,1775581849940,-785.93,0.00015999,2]
[419980310,1775581849951,-785.93,0.00015999,2]
[419980311,1775581849961,-785.93,0.00015999,2]
[419980312,1775581849970,-785.93,0.00015999,2]
[419980313,1775581849980,-785.98918003,0.00015999,2]
[419980314,1775581849989,-500.0,0.00015999,2]
[419980315,1775581849998,-500.0,0.00015999,2]
[419980316,1775581850009,-500.0,0.00015999,2]
[419980317,1775581850019,-500.0,0.00015999,2]
[419980318,1775581850028,-500.0,0.00015999,2]
[419980319,1775581850038,-500.0,0.00015999,2]
[419980320,1775581850048,-500.0,0.00015999,2]
[419980321,1775581850057,-500.0,0.00015999,2]
[419980322,1775581850068,-517.21055633,0.00015999,2]
[419980323,1775581850078,-787.31,0.00015999,2]
[419980324,1775581850088,-787.31,0.00015999,2]
[419980325,1775581850097,-787.31,0.00015999,2]
[419980326,1775581850107,-787.31,0.00015999,2]
[419980327,1775581850117,-787.31,0.00015999,2]
[419980329,1775581850127,-787.31,0.00015999,2]
[419980331,1775581850136,-787.31,0.00015999,2]
[419980333,1775581850145,-787.31,0.00015999,2]
[419980335,1775581850155,-787.31,0.00015999,2]
[419980337,1775581850165,-787.31,0.00015999,2]
[419980339,1775581850174,-787.31,0.00015999,2]
[419980341,1775581850184,-787.34692703,0.00015999,2]
[419980343,1775581850194,-922.22,0.00015999,2]
[419980345,1775581850203,-922.22,0.00015999,2]
[419980347,1775581850213,-922.22,0.00015999,2]
[419980349,1775581850222,-922.22,0.00015999,2]
[419980350,1775581850232,-922.22,0.00015999,2]
[419980351,1775581850242,-922.22,0.00015999,2]
[419980353,1775581850252,-922.22,0.00015999,2]
[419980355,1775581850262,-922.22,0.00015999,2]
[419980357,1775581850272,-922.22,0.00015999,2]
[419980359,1775581850282,-922.22,0.00015999,2]
[419980361,1775581850292,-922.22,0.00015999,2]
[419980363,1775581850301,-922.30053324,0.00015999,2]
[419980365,1775581850311,-556.66,0.00015999,2]
[419980367,1775581850321,-556.66,0.00015999,2]
[419980369,1775581850331,-556.66,0.00015999,2]
[419980371,1775581850340,-556.66,0.00015999,2]
[419980372,1775581850349,-556.66,0.00015999,2]
[419980374,1775581850359,-556.84950636,0.00015999,2]
[419980377,1775581850371,-500.0,0.00015999,2]
[419980379,1775581850382,-500.0,0.00015999,2]
[419980381,1775581850392,-500.0,0.00015999,2]
[419980383,1775581850402,-500.0,0.00015999,2]
[419980385,1775581850413,-500.0,0.00015999,2]
[419980387,1775581850423,-500.0,0.00015999,2]
[419980389,1775581850432,-274.44397972,0.00015999,2]
[419980391,1775581850442,-683.92,0.00015999,2]
[419980393,1775581850452,-683.92,0.00015999,2]
[419980395,1775581850462,-683.92,0.00015999,2]
[419980397,1775581850472,-683.92,0.00015999,2]
[419980399,1775581850482,-683.92,0.00015999,2]
[419980401,1775581850492,-683.93916673,0.00015999,2]
[419980403,1775581850502,-57636.64122745,0.00015999,2]
[419980405,1775581850512,-150.0,0.00015999,2]
[419980407,1775581850522,-150.0,0.00015999,2]
[419980408,1775581850532,-150.0,0.00015999,2]
[419980409,1775581850541,-150.0,0.00015999,2]
[419980410,1775581850550,-150.0,0.00015999,2]
[419980411,1775581850560,-150.0,0.00015999,2]
[419980412,1775581850570,-150.0,0.00015999,2]
[419980413,1775581850581,-150.0,0.00015999,2]
[419980414,1775581850591,-179.55299746,0.00015999,2]
[419980415,1775581850601,-125137.31952642,0.00016,2]
[419980416,1775581850612,-98330.44436851,0.00016,2]
[419980417,1775581852117,-1176.555,0.00016,2]
[419980418,1775581852160,-323.55385506,0.00016,2]
[419980419,1775581852197,-764.8018764,0.00016,2]
[419980420,1775581852212,-1972.78274802,0.00016,2]
[419980421,1775581852224,-1852.927,0.00016,2]
[419980422,1775581852236,-3817.89380959,0.00016,2]
[419980423,1775581852710,-117291.9057041,0.00016,2]
[419980424,1775581852993,-662.0,0.00013151,2]
[419980425,1775581853003,-382.14357805,0.00013151,2]
[419980426,1775581853017,-279.85642195,0.00013151,2]
[419980427,1775581853026,-244.54912782,0.00013151,2]
[419980428,1775581853036,-250.29303463,0.00015421,2]
[419980429,1775581853062,-10632.85304545,0.00013951,2]
[419980430,1775581853073,-749.70696537,0.00015421,2]
[419980431,1775581853083,-1000.0,0.00015421,2]
[419980432,1775581853094,-2000.0,0.000156,2]
[419980433,1775581853104,-2000.0,0.000157,2]
[419980434,1775581853114,-2000.0,0.000158,2]
[419980435,1775581853123,-19925.0006802,0.000159,2]
[419980436,1775581853134,-2000.0,0.000159,2]
[419980437,1775581853144,-116908.59979303,0.00016,2]
[419980438,1775581853155,-195.0,0.00016,7]
[419980439,1775581853164,-190.0,0.00016,7]
[419980440,1775581853174,-300.0,0.00016,2]
[419980441,1775581853183,-521961.76519229,0.00016,2]
[419980442,1775581853196,-2816532.89122729,0.00016,2]
[419980443,1775581853205,-213.15815462,0.00016,2]
[419980444,1775581853215,-1000.0,0.00016,2]
[419980445,1775581853225,-254335.16509039,0.00016,2]
[419980446,1775581853356,-151.0,0.00012507,2]
[419980447,1775581853366,-224.66071133,0.00012721,2]
[419980448,1775581853376,-662.0,0.00013151,2]
[419980449,1775581853386,-151.0,0.00013151,2]
[419980450,1775581853396,-3804.93,0.00014969,2]
[419980451,1775581853406,-1000.0,0.00015421,2]
[419980452,1775581853415,-1000.0,0.00015421,2]
[419980453,1775581853424,-1000.0,0.00015421,2]
[419980454,1775581853434,-2000.0,0.000155,2]
[419980455,1775581853444,-120171.19296771,0.00016,2]
[419980456,1775581853455,-2238.0,0.00016,2]
[419980457,1775581853468,-17134.8991336,0.00016,2]
[419980458,1775581853480,-33543.49708184,0.00016,2]
[419980459,1775581853491,-2987.2,0.00016,2]
[419980460,1775581853503,-2095.592,0.00016,2]
[419980461,1775581853514,-1603.7496992,0.00016,2]
[419980462,1775581853526,-1397.0,0.00016,2]
[419980463,1775581853873,-15355.66890795,0.00011807,2]
[419980464,1775581853891,-1685358.06829941,0.00011807,2]
[419980465,1775581853903,-88918.0226084,0.00011807,2]
[419980466,1775581853915,-98188.44683561,0.00011807,2]
[419980467,1775581854251,-1959.29828611,0.00011807,2]
[419980468,1775581854263,-1090.07772,0.00011807,2]
[419980469,1775581854274,-1332.62992998,0.00011807,2]
[419980470,1775581854345,-68525.97040653,0.00011807,2]
[419980882,1775581888978,5056.631,0.00011571,2]
[419980888,1775581889133,286.593,0.00011571,2]
[419981116,1775582063768,158.0,6.659e-05,2]
[419981117,1775582063827,156.0,6.659e-05,2]
[419981118,1775582063921,156.0,6.659e-05,2]
[419981119,1775582064173,156.0,6.659e-05,2]
[419981120,1775582064429,156.0,6.659e-05,2]
[419981121,1775582064678,156.0,6.659e-05,2]
[419981122,1775582065343,156.0,6.659e-05,2]